Cogmind - Beta 14 @@@ ROGUE MODE // 2025.01.08 @ 12:02:14 Player: puppuppit Result: Destroyed by as-61673 with Assembled Rifle Performance ------------- Evolutions (0) 0 Regions Visited (4) 800 Robots Destroyed (52) 260 Value Destroyed (883) 883 Prototype IDs (27) 540 Alien Tech Used (0) 0 Bonus (314) 314 TOTAL SCORE: 2797 Bonus ------- High Alert Combat Kills 14 Aligned with FarCom 300 Cogmind --------- Core Integrity 0/250 Matter 300/300 Energy 125/125 System Corruption 6% Temperature Cool (0) Movement Rolling (80) Location -9/Mines Parts ------- > --- POWER (1) -------- Light Ion Engine > --- PROPULSION (2) --- Wheel Wheel > --- UTILITY (2) ------ Disposable Heat Sink Small Storage Unit > --- WEAPON (2) ------- AWS/Thermal > --- INVENTORY (8) ---- Fission Core Fission Core Combat Airjet Disposable Heat Sink Improved Light Cannon Improved Light Cannon Improved Light Cannon Bore Cannon Peak State ------------ > --- POWER ------------ Light Ion Engine > --- PROPULSION ------- Wheel Wheel > --- UTILITY ---------- Disposable Heat Sink Small Storage Unit > --- WEAPON ----------- AWS/Thermal > --- INVENTORY -------- Fission Core Fission Core Disposable Heat Sink Improved Light Cannon Improved Light Cannon Improved Light Cannon Improved Light Cannon Grenade Launcher [Rating: 24] Favorites ----------- Power Light Ion Engine Engine Light Ion Engine Propulsion Wheel Wheel Wheel Utility Small Storage Unit Device Disposable Heat Sink Storage Small Storage Unit Weapon Improved Light Cannon Energy Gun AWS/Thermal Ballistic Gun Light Assault Rifle Ballistic Cannon Improved Light Cannon Launcher Grenade Launcher Build | -11 -10 -10 -10 -9 ------- Run | Yrd Mat Min Exi Min Slots Evolved . | . . . . . Power . | . . . . . Propulsion . | . . . . . Utility . | . . . . . Weapon . | . . . . . Parts Attached 34 | 9 11 6 1 7 Power 5 | 2 2 . . 1 Engine 5 | 2 2 . . 1 Core . | . . . . . Reactor . | . . . . . Propulsion 10 | 3 5 . . 2 Treads . | . . . . . Leg . | . . . . . Wheel 10 | 3 5 . . 2 Hover . | . . . . . Flight . | . . . . . Utility 3 | 2 1 . . . Device 2 | 1 1 . . . Storage 1 | 1 . . . . Processor . | . . . . . Hackware . | . . . . . Protection . | . . . . . Artifact . | . . . . . Weapon 16 | 2 3 6 1 4 Energy Gun 4 | 1 . . 1 2 Energy Cannon . | . . . . . Ballistic Gun 1 | 1 . . . . Ballistic Cannon 8 | . 3 3 . 2 Launcher 3 | . . 3 . . Special Weapon . | . . . . . Impact Weapon . | . . . . . Slashing Weapon . | . . . . . Piercing Weapon . | . . . . . Special Melee Weapon . | . . . . . Unidentified Prototypes . | . . . . . Parts Lost 4 | . 2 . . 2 Power 1 | . 1 . . . Propulsion 3 | . 1 . . 2 Utility . | . . . . . Weapon . | . . . . . Highest Loss Streak 1 | . 1 . . 1 To Critical Strikes . | . . . . . Average Slot Usage (%) 86 | . 87 100 75 83 Engine 10 | . 3 14 14 14 Wheel 27 | . 27 28 28 26 Device 14 | . 14 14 14 14 Storage 14 | . 14 14 14 14 Energy Gun 4 | . 1 . 3 13 Ballistic Cannon 13 | . 24 26 . . Peak Build Rating 24 | 9 11 11 24 24 Average Rating 13 | 6 9 10 12 23 On Entrance 11 | . 9 11 11 24 Naked Turns . | . . . . . Heaviest Build 19 | 14 19 17 17 17 Greatest Support 26 | 26 20 20 20 20 Greatest Overweight (x) 1 | . 1 . . 1 Average Overweight (x) . | . . . . . Largest Inventory Capacity 8 | 8 8 8 8 8 Average Capacity 7 | 7 8 8 8 8 Most Carried 8 | 3 8 8 8 8 Average Carried 7 | . 7 8 6 7 Final Capacity 8 | 8 8 8 8 8 Final Carried 8 | 3 8 8 8 8 Class Distribution -------------------- 100% | Mutant Dominant Class ---------------- Mutant | -10/Materials Mutant | -10/Mines Mutant | -10/Exiles Mutant | -9/Mines Resources | -11 -10 -10 -10 -9 ----------- Run | Yrd Mat Min Exi Min Matter Collected 1273 | 278 604 52 139 200 Remotely . | . . . . . Salvage Created 1399 | 217 788 97 . 297 Parts 87 | 10 57 18 . 2 Haulers Intercepted 2 | . 2 . . . Recyclers Shooed 1 | . 1 . . . Parts Field Recycled . | . . . . . Retrieved Matter . | . . . . . Parts Self-Destructed . | . . . . . Prevented . | . . . . . Kills | -11 -10 -10 -10 -9 ------- Run | Yrd Mat Min Exi Min Combat Hostiles Destroyed 41 | . 13 11 . 17 Guns 17 | . . . . 17 Cannons 14 | . 13 1 . . AOE 10 | . . 10 . . Classes Destroyed 11 | 3 5 1 . 2 Worker 5 | 2 3 . . . Builder 6 | . 5 1 . . Tunneler 5 | 4 . 1 . . Hauler 2 | . 2 . . . Recycler 5 | 1 3 . . 1 Operator 1 | . 1 . . . Watcher 3 | . 3 . . . Swarmer 9 | . . 9 . . Grunt 15 | . 13 2 . . Demolisher 1 | . . . . 1 Assembled 16 | . . . . 16 Best Kill Streak 9 | 5 9 8 . 8 Combat Bots Only 8 | . 4 8 . 8 Max Kills in Single Turn 3 | 1 1 3 . 1 Gunslinging . | . . . . . Exploded 3 | . . 3 . . Melee . | . . . . . Uniques/NPCs Destroyed . | . . . . . Combat | -11 -10 -10 -10 -9 -------- Run | Yrd Mat Min Exi Min Hostile Shots Fired 72 | . 56 11 . 5 Missed 22 | . 19 3 . . Damage Taken 675 | . 504 77 . 94 Core 257 | . 226 16 . 15 Absorbed by Shields . | . . . . . Regen/Repaired (Parts) 57 | . 57 . . . Core Remaining (%) 100 | 100 . . . . Volleys Fired 94 | 18 61 10 . 5 Largest 2 | 2 2 2 . 1 Hottest 78 | 70 78 78 . 57 Shots Fired 217 | 36 122 12 . 47 Gun 84 | 36 6 . . 42 Cannon 124 | . 116 3 . 5 Launcher 9 | . . 9 . . Special . | . . . . . Kinetic 145 | 18 119 3 . 5 Thermal 63 | 18 3 . . 42 Explosive 9 | . . 9 . . Electromagnetic . | . . . . . Robot Hit Streak 11 | 5 9 6 . 11 Robot Miss Streak 5 | 1 5 . . 3 Penetration Max . | . . . . . Secondary Targets . | . . . . . Autonomous 42 | . . . . 42 Shots Hit Robots 127 | 23 62 5 . 37 Core Hits 75 | 9 33 13 . 20 Critical Kills 1 | . . . . 1 Critical Parts Destroyed . | . . . . . Critical Strikes 10 | 5 4 . . 1 Burn 5 | 5 . . . . Destroy 1 | . . . . 1 Blast 4 | . 4 . . . Melee Attacks . | . . . . . Impact . | . . . . . Slashing . | . . . . . Piercing . | . . . . . Sneak Attacks . | . . . . . Combat Hostiles . | . . . . . Follow-up Attacks . | . . . . . Damage Inflicted 3335 | 250 1348 713 . 1024 Guns 1281 | 250 32 . . 999 Cannons 1381 | . 1316 40 . 25 Explosions 673 | . . 673 . . Melee . | . . . . . Ramming . | . . . . . Kinetic 1487 | 100 1322 40 . 25 Thermal 1175 | 150 26 . . 999 Explosive 673 | . . 673 . . Electromagnetic . | . . . . . Impact . | . . . . . Slashing . | . . . . . Piercing . | . . . . . Highest Corruption 6 | . 2 2 2 6 Average Corruption 2 | . 1 2 2 4 Corruption Purged . | . . . . . Corruption Blocked . | . . . . . Effects 31 | . 10 7 5 9 Message Errors 5 | . 1 2 1 1 Matter Fused 9 | . 1 1 2 5 Heat Flow Errors 1 | . . 1 . . Energy Discharges 4 | . 2 1 . 1 Data Loss (minor) 7 | . 4 1 1 1 Data Loss (major) 3 | . 1 . 1 1 Alerts 2 | . 1 1 . . Overload Shots . | . . . . . Overflow Damage 66 | . 24 42 . . Projectiles 24 | . 24 . . . Explosions 42 | . . 42 . . Melee . | . . . . . Knockbacks 11 | . 11 . . . Impact . | . . . . . Kinetic 10 | . 10 . . . Secondary 1 | . 1 . . . Self-Inflicted Damage . | . . . . . Shots . | . . . . . Rammed . | . . . . . Targets Rammed . | . . . . . Kicked . | . . . . . Crushed . | . . . . . Highest Temperature 179 | 160 100 179 . 64 Average Temperature 36 | 70 25 55 . 29 Received Heat Transfer 291 | . 267 24 . . Siege Activations . | . . . . . Robots Corrupted . | . . . . . Combat Hostiles . | . . . . . Parts Fried . | . . . . . Impact Corruptions . | . . . . . Robots Melted . | . . . . . Combat Hostiles . | . . . . . Parts Melted . | . . . . . Heat Transferred 2183 | 814 74 . . 1295 Parts Sabotaged . | . . . . . Parts Stolen . | . . . . . Parts Stripped . | . . . . . Power Chain Reactions . | . . . . . Alert | -11 -10 -10 -10 -9 ------- Run | Yrd Mat Min Exi Min Peak Influence 483 | 35 454 483 . 32 Initial 177 | . 22 177 . . Average 202 | 13 280 371 . 11 Maximum Alert Level 2 | . 2 2 . . Low Security (%) 54 | 100 35 15 . 100 Level 1 29 | . 42 56 . . Level 2 15 | . 22 27 . . Level 3 . | . . . . . Level 4 . | . . . . . Level 5 . | . . . . . High Security . | . . . . . Max Security . | . . . . . Squads Dispatched 6 | . 6 . . . Investigation 5 | . 5 . . . Extermination . | . . . . . Reinforcement 1 | . 1 . . . Assault . | . . . . . Garrison . | . . . . . Intercept . | . . . . . Searches Triggered . | . . . . . Construction Impeded . | . . . . . Haulers Reinforced . | . . . . . Active Scanning Responses . | . . . . . Cargo Convoy Interrupts . | . . . . . Stealth | -11 -10 -10 -10 -9 --------- Run | Yrd Mat Min Exi Min Distress Signals 3 | . 3 . . . Communications Jammed . | . . . . . Distress Signals . | . . . . . Times Spotted 62 | . 29 9 . 24 Peak Tracking Total 15 | . 7 3 . 15 Tactical Retreats 3 | . 1 . . 2 Traps | -11 -10 -10 -10 -9 ------- Run | Yrd Mat Min Exi Min Traps Triggered 3 | . 3 . . . Indirectly . | . . . . . Trap Hack Attempts . | . . . . . Triggered . | . . . . . Disarmed . | . . . . . Reprogrammed . | . . . . . Reused . | . . . . . Traps Extracted . | . . . . . Installed . | . . . . . Triggered . | . . . . . Machines | -11 -10 -10 -10 -9 ---------- Run | Yrd Mat Min Exi Min Machines Disabled 1 | . 1 . . . Max in Single Turn 1 | . 1 . . . Machines Repaired . | . . . . . Machines Dismantled . | . . . . . Machines Sabotaged . | . . . . . Overloaded Fab Kills . | . . . . . Hacking | -11 -10 -10 -10 -9 --------- Run | Yrd Mat Min Exi Min Machines Accessed 14 | . 8 . 5 1 Terminals 7 | . 7 . . . Fabricators . | . . . . . Repair Stations 1 | . 1 . . . Recycling Units . | . . . . . Scanalyzers . | . . . . . Garrison Access . | . . . . . Total Hacks 72 | . 21 . 50 1 Successful 58 | . 7 . 50 1 Failed 14 | . 14 . . . Catastrophic 1 | . 1 . . . Database Lockouts . | . . . . . Manual 11 | . 10 . 1 . Terminals 19 | . 19 . . . Fabricators . | . . . . . Repair Stations 2 | . 2 . . . Recycling Units . | . . . . . Scanalyzers . | . . . . . Garrison Access . | . . . . . Terminal Hacks 56 | . 5 . 50 1 Record 49 | . . . 49 . Robot Analysis 2 | . 2 . . . Prototype ID Bank 2 | . 2 . . . Open Door 1 | . . . . 1 Terminal Index 1 | . 1 . . . Derelict Proto ID Bank 1 | . . . 1 . Fabricator Hacks . | . . . . . Repair Station Hacks 2 | . 2 . . . Scan Component 1 | . 1 . . . Repair 1 | . 1 . . . Recycling Unit Hacks . | . . . . . Scanalyzer . | . . . . . Garrison Access Hacks . | . . . . . Unauthorized Hacks . | . . . . . Terminals . | . . . . . Fabricators . | . . . . . Repair Stations . | . . . . . Recycling Units . | . . . . . Scanalyzers . | . . . . . Garrison Access . | . . . . . Data Cores Recovered . | . . . . . Used . | . . . . . Hacking Detections 7 | . 7 . . . Full Trace Events 4 | . 4 . . . Feedback Events 2 | . 2 . . . Corruption 2 | . 2 . . . Feedback Blocked . | . . . . . Robot Schematics Acquired . | . . . . . Robots Built . | . . . . . Authchips . | . . . . . Time . | . . . . . Total Robot Build Rating . | . . . . . Part Schematics Acquired . | . . . . . Parts Built . | . . . . . Authchips . | . . . . . Time . | . . . . . Total Part Build Rating . | . . . . . Parts Repaired 1 | . 1 . . . Time 32 | . 32 . . . Parts Recycled . | . . . . . Recycled Matter . | . . . . . Retrieved Matter . | . . . . . Retrieved Components . | . . . . . Parts Scanalyzed . | . . . . . Part Schematics Acquired . | . . . . . Parts Damaged . | . . . . . Bothacking | -11 -10 -10 -10 -9 ------------ Run | Yrd Mat Min Exi Min Used RIF Installer . | . . . . . Robots Hacked . | . . . . . Non-combat . | . . . . . Combat . | . . . . . Robot Hacks Applied . | . . . . . Relay Couplers Released . | . . . . . Fabnet Peak Effective % . | . . . . . Robots Rewired . | . . . . . Allies Hacked . | . . . . . Hacks Repelled . | . . . . . Allies | -11 -10 -10 -10 -9 -------- Run | Yrd Mat Min Exi Min Total Allies 2 | . . 2 . . Largest Group 2 | . . 2 2 . Highest-Rated Group 39 | . . 39 39 . Highest-Rated Ally 31 | . . 31 31 . Total Orders . | . . . . . Ally Attacks . | . . . . . Total Damage . | . . . . . Kills . | . . . . . Allies Corrupted . | . . . . . Allies Melted . | . . . . . Intel | -11 -10 -10 -10 -9 ------- Run | Yrd Mat Min Exi Min Robot Analysis Total 2 | . 2 . . . Derelict Logs Recovered 2 | . . 1 . 1 Drone Launches . | . . . . . Drone Recoveries . | . . . . . Exploration | -11 -10 -10 -10 -9 ------------- Run | Yrd Mat Min Exi Min Turns Passed 2206 | 114 766 357 458 511 Spaces Moved 2096 | 59 626 403 548 460 Core 11 | 11 . . . . Treads . | . . . . . Legs . | . . . . . Wheels 2085 | 48 626 403 548 460 Hover . | . . . . . Flight . | . . . . . Fastest Speed 50 | 50 80 80 80 80 Average Speed 80 | 80 80 80 80 80 Slowest Speed 100 | 100 95 80 80 95 Overloaded Moves . | . . . . . Propulsion Burnouts . | . . . . . Robots Hopped . | . . . . . Cave-ins Triggered . | . . . . . Exploration Rate (%) 63 | 4 93 83 90 49 Regions Visited 4 Branch Regions 3 Pre-discovered Areas 3 | . . 2 1 . Known Exits Taken . | . . . . . Unknown Exits Taken 4 | 1 1 1 1 . Scrap Searched 2 | . . 1 . 1 Spaces Dug . | . . . . . Terrain Destroyed 68 | . 14 44 . 10 Melee . | . . . . . Projectile 24 | . 14 . . 10 AOE 44 | . . 44 . . Terrain Rammed . | . . . . . Walls Destroyed . | . . . . . Machines Disabled . | . . . . . Actions | -11 -10 -10 -10 -9 --------- Run | Yrd Mat Min Exi Min Total 2456 | 88 774 422 574 598 Wait 172 | . 46 4 5 117 Move 2092 | 58 625 402 547 460 Hop . | . . . . . Pick Up 27 | 3 13 . 9 2 Fast Attach 18 | 7 7 . . 4 Attach 3 | . . . 1 2 Detach 6 | . 2 . 2 2 Swap 13 | 2 4 6 . 1 Drop 31 | . 16 . 10 5 Fire 94 | 18 61 10 . 5 Melee . | . . . . . Ram . | . . . . . Kick . | . . . . . Crush . | . . . . . Escape Stasis . | . . . . . Rewire . | . . . . . Trap . | . . . . . Miscellaneous . | . . . . . Route ------- -11/Scrapyard -10/Materials (discovered 4 exits: [*Mat x3] / [*Min]) -10/Mines (discovered 2 exits: [*Mat] / *Exi) -10/Exiles -9/Mines (discovered 2 exits: *Mat x2) History --------- Turn | Location | Event 25 | -11/Scrapyard | Discovered new exit (range 16) 115 | -11/Scrapyard | Entered Materials 227 | -10/Materials | Discovered new exit (range 15) 316 | -10/Materials | Build established: Mutant 374 | -10/Materials | Discovered new exit (range 8) 534 | -10/Materials | Core integrity fell below 50% 575 | -10/Materials | Core integrity fell below 20% 699 | -10/Materials | Repaired Imp. Light Cannon 738 | -10/Materials | Discovered new exit (range 14) 841 | -10/Materials | Discovered new exit (range 11) 881 | -10/Materials | Entered Mines 925 | -10/Mines | Learned location of Storage (-7) 981 | -10/Mines | Destroyed 8 combat bots 1001 | -10/Mines | Discovered new exit (range 5) 1234 | -10/Mines | Deemed a non-threat by the Exiles lab entrance 1234 | -10/Mines | Discovered new exit (range 5) 1238 | -10/Mines | Entered Exiles 1238 | -10/Exiles | Accompanied by 2 allies 1266 | -10/Exiles | Met 8R-AWN 1268 | -10/Exiles | Led the pair of lost Derelicts to a safe place 1282 | -10/Exiles | Met EX-HEX 1323 | -10/Exiles | Met EX-DEC 1348 | -10/Exiles | Learned location of Zion (-6) 1380 | -10/Exiles | Visited The Gauntlet 1510 | -10/Exiles | Met EX-BIN 1524 | -10/Exiles | Aligned with FarCom system 1525 | -10/Exiles | Given EX-Vault access code 1559 | -10/Exiles | Opened EX-Vault 1564 | -10/Exiles | Found AWS/Thermal 1582 | -10/Exiles | Warned to stay clear of 0b10 Research branches 1594 | -10/Exiles | Exiles lab attacked by MAIN.C 1686 | -10/Exiles | Discovered new exit (range 14) 1696 | -10/Exiles | Left Exiles lab with AWS/Thermal 1696 | -10/Exiles | Entered Mines 1721 | -9/Mines | Identified exit to Materials 1729 | -9/Mines | A weapon hastily lodged in a ceiling crevice suddenly fell to the ground 1755 | -9/Mines | Discovered exit to Materials (range 5) 1770 | -9/Mines | Met a Derelict who couldn't figure out how to use a Trap Extractor 1806 | -9/Mines | Assembled infested the area 1811 | -9/Mines | Assisted by a Guerilla fighting off Assembled 1985 | -9/Mines | Destroyed 8 combat bots 2207 | -9/Mines | Destroyed by as-61673 with Assembled Rifle Last Messages --------------- 02022_ System corrupted: Matter fused (-5). 02072_ System corrupted: Energy discharge (-28). 02106_ System corrupted: Matter fused (-6). 02128_ Dropped AWS/Thermal. 02132_ Acquired AWS/Thermal. 02149_ Dropped AWS/Thermal. 02153_ HV Slug penetrates Wall. 02157_ R-06 Scavenger suffers critical hit (Destroy). 02157_ R-06 Scavenger destroyed. 02159_ Acquired AWS/Thermal. 02161_ Acquired 70 matter. 02165_ Dropped Lgt. Ion Engine. 02182_ as-60323 destroyed. 02185_ as-89250 destroyed. [Achievement: Exterminator] 02186_ as-32259 destroyed. 02191_ Acquired 7 matter. 02192_ Acquired 12 matter. 02194_ Acquired 7 matter. 02195_ K-01 Serf collects debris. Map ----- +----------------------------------------------------+ | ?????????????????????????????????????????? | | ?????????????????????????????????????????# | | ?????????????????????????????????????????# | | ???????????????#####?????????????????????# | | ???????????????# ! ############??????????# | | ????#######????# ##% ???? | | ????""""""#????##* ###% #######??????????? | | ????![=!!=#?????## #% #???????????????? | | ????? ^! #??????# % #????????????#### | | ??##?= *###????### *!##???????######"## | | ??# ## ## #??????# #%# ##??????# | | ??# X #??????# # # #??????# ####"" | | ??# #??????# # # ##??????# #??#### | | ??# #??????#### ###???????# #?????# | | ??# < #?????????# ##????????# #?????? | | ??# #????????## ##????????# #?????? | | ??# #????????##%##????????# #?????? | | ??### ######????###?##!########### #?????? | | ????# #????????## ####!| = #?????? | | ????# #????????# ### #############?????? | | ????# #????????# ###%#?????????????????? | | ????# #????????# #?#%#?????????????????? | | ????# ########?# #?#%##????????????????? | | ????# #?# #?#[##????????????????? | | ????####### ### ###%######????????????? | | ??????????# ## @ =%%%=%![!#????????????? | | ??????????# ##= t=*k!k*%==#????????????? | | ??????????# #%* ########=!#????????????? | | ??????????#%=%!% ##??####??=#????????????? | | ??????????# ##??????????#????????????? | | ???##?????# ##????????????????????????? | | ??## #???## ]=!#?????????????????????????? | | ??# #### !]%##?????????????????????????? | | ??# *##??????????????????????????? | | ??# a##???????????????????????????? | | ??# ##?###???????????????????????? | | ??## ## ##??????????????????????? | | ???## #??????????????????????? | | ????# #??????????????????????? | | ????## #### #??????????????????????? | | ?????######??# ##??????????????????????? | | ?????????????# #######??????????????????? | | ???????####### ### ##?????????????????? | | ???????# ## ##????????????????? | | ???????# ##### ######???????????? | | ????????????## ##??????????? | | ???????????## #??????????? | | ???????????# #??????????? | | ???????????# ##??????????? | | ???????????# ## ##???????????? | +----------------------------------------------------+ Best States ------------- Heat Dissipation 25 Coolant Potential 50 Energy Generation 10 Energy Capacity 250 Matter Stores 300 Matter Capacity 300 Sight Range 16 Terrain Scan Range 16 Terrain Scan Density 10 Evasion (%) 50 Item Schematics ----------------- None Robot Schematics ------------------ None Fabricated ------------ Nothing Alien Tech Used ----------------- None Achievements -------------- Exterminator Challenges ------------ None Game ------ Seed EtherialPiercingTreads Manual? 0 Play Time 00:20:17 Cumulative 16.4 hours Start 2025.01.08 @ 11:43:36 End 2025.01.08 @ 12:02:14 Sessions 1 Manual Loads 0 Difficulty Rogue Special Mode None Game No. 11 Rogue 11 Adventurer 0 Explorer 0 Win Type - Total 0 Types 0/0/0/0/0/0/0/0/0 Lore% 16 Gallery% 19 Achievement% 28 Wizard Run 0 Options --------- Layout 0 ASCII 0 Keyboard 1 Movement Arrows Keybinds 0 Fullscreen 1 Font 12/Proggy Map View 83x54 Zoom Use 0% Tactical HUD 1 Map Filters NONE Filters NONE Steam 0 RUN: 5a42f9fd-8e0c-4fac-9f7c-59df72f92fac